bitfinex-derivatives/quotes_ETHF0:USTF0_20251118
["timestamp","ask_amount","ask_price","bid_price","bid_amount"]
[1763451985829,1.17958974,3031.6,3031.5,0.1402]
[1763451986027,3.87704048,3031.6,3031.4,0.00901286]
[1763451986226,1.17958974,3031.6,3031.5,0.1355]
[1763451986536,5.209,3031.6,3031.5,0.1355]
[1763451987334,5.209,3031.6,3031.5,0.3795]
[1763451989125,5.209,3031.6,3031.5,0.1355]
[1763451989438,1.17958974,3031.8,3031.5,0.3648]
[1763451989634,1.17958974,3031.9,3031.5,0.1355]
[1763451991937,1.17958974,3031.8,3031.5,0.1355]
[1763451993030,1.17958974,3031.7,3031.4,0.00901286]
[1763451993228,1.17958974,3031.5,3031.4,0.00901286]
[1763451993536,1.77903753,3031.6,3029.5,0.1351]
[1763451993730,3.87944329,3031.0,3029.5,0.1351]
[1763451993932,9.29999255,3030.9,3029.8,0.53532]
[1763451994133,1.18199255,3030.8,3029.5,0.1351]
[1763451994333,1.18199255,3030.8,3029.7,0.53534]
[1763451994638,1.18491588,3030.8,3030.5,0.14435186]
[1763451995037,1.18491588,3030.8,3030.5,0.00415186]
[1763451995232,1.18199255,3030.7,3030.5,0.00415186]
[1763451996034,1.18199255,3030.7,3030.6,0.2293]
[1763451996540,1.18199255,3030.7,3030.5,0.13925186]
[1763451996738,1.18199255,3030.7,3030.6,0.2293]
[1763451997440,1.18199255,3030.7,3030.5,0.13925186]
[1763451998042,1.18199255,3030.7,3030.6,0.2293]
[1763451998831,1.18491588,3030.8,3030.6,0.2293]
[1763451999339,1.18491588,3030.8,3030.5,0.13925186]
[1763451999642,9.29999255,3030.7,3030.5,0.13925186]
[1763452000342,9.29999255,3030.7,3030.5,0.00415186]
[1763452000842,9.29999255,3030.7,3030.5,0.13925186]
[1763452001736,1.18491588,3030.8,3030.7,0.2293]
[1763452001933,0.00292333,3030.8,3030.7,0.2293]
[1763452002544,0.00292333,3030.8,3030.5,0.13925186]
[1763452002931,0.00292333,3030.8,3030.7,0.2293]
[1763452003135,0.00292333,3030.8,3030.5,0.13925186]
[1763452003441,1.18199255,3030.7,3030.5,0.13925186]
[1763452004136,1.18199255,3030.6,3029.5,0.1351]
[1763452004331,1.18405402,3029.9,3029.5,0.1351]
[1763452004535,1.18405402,3029.6,3028.5,0.1351]
[1763452004850,1.18405402,3029.1,3028.5,0.1351]
[1763452005141,1.18453151,3029.0,3028.5,0.13802625]
[1763452005338,1.18947971,3029.1,3029.0,0.3644]
[1763452005534,8.1219482,3029.1,3029.0,0.1351]
[1763452005732,8.1219482,3029.1,3028.5,0.13802625]
[1763452006241,8.1219482,3029.1,3029.0,0.1351]
[1763452006436,8.1219482,3029.1,3028.5,0.13802625]
[1763452006737,2.69745074,3028.9,3028.5,0.13802625]
[1763452007043,2.380087,3028.6,3028.5,0.00292625]
[1763452007243,2.38346593,3028.6,3028.0,0.1351]
[1763452008443,2.38346593,3028.6,3028.0,0.13836237]
[1763452008845,3.651,3028.5,3028.0,0.13836237]
[1763452009543,2.38346593,3028.6,3028.0,0.13836237]
[1763452009740,0.00337893,3028.6,3028.5,0.1351]
[1763452009941,2.65937893,3028.6,3028.5,0.1351]
[1763452011958,5.03946593,3028.6,3028.0,0.13836237]
[1763452013450,5.03946593,3028.6,3028.5,0.1351]
[1763452014251,10.50246593,3028.6,3028.5,0.1351]
[1763452015550,8.12237893,3028.6,3028.5,0.1351]
[1763452017645,0.00337893,3028.6,3028.5,0.1351]
[1763452017845,2.52837893,3028.6,3028.5,0.1351]
[1763452018343,4.90846593,3028.6,3028.0,0.13836237]
[1763452018841,4.90846593,3028.6,3028.5,0.1373]
[1763452020352,0.00337893,3028.6,3028.5,0.3775]
[1763452020652,0.0049482,3029.1,3029.0,0.3775]
[1763452021041,2.3850352,3029.1,3029.0,0.1373]
[1763452021349,2.3850352,3029.1,3028.5,0.1373]
[1763452021555,2.3850352,3029.1,3029.0,0.3775]
[1763452021853,0.00741587,3029.1,3029.0,0.1373]
[1763452022754,2.38750287,3029.1,3028.5,0.1373]
[1763452023250,2.38750287,3029.1,3029.0,0.1373]
[1763452024145,2.38750287,3029.1,3028.5,0.1373]
[1763452024545,0.00741587,3029.1,3029.0,0.1373]
[1763452024948,0.00741587,3029.1,3029.0,0.3775]
[1763452025551,0.00741587,3029.1,3028.5,0.1373]
[1763452025751,0.00741587,3029.1,3029.0,0.3775]
[1763452026455,3.65941587,3029.1,3029.0,0.1373]
[1763452028044,3.65941587,3029.1,3028.5,0.1373]
[1763452028253,1.18011277,3028.9,3028.5,0.1373]
[1763452028748,1.18011277,3029.0,3028.9,0.2402]
[1763452029055,7.53541587,3029.1,3029.0,0.1373]
[1763452029258,1.16773584,3029.4,3029.3,0.2402]
[1763452029456,3.901,3030.3,3030.0,0.1373]
[1763452029753,5.68003753,3030.3,3030.0,0.1373]
[1763452030151,3.901,3030.3,3030.0,0.1373]
[1763452030352,5.68379202,3030.3,3030.0,0.1373]
[1763452030654,3.90475449,3030.3,3030.0,0.1373]
[1763452031248,5.68379202,3030.3,3030.0,0.1373]
[1763452032752,5.68379202,3030.3,3029.8,0.0049482]
[1763452032753,1.77903753,3030.1,3029.8,0.0049482]
[1763452032956,4.15912453,3030.2,3029.8,0.0049482]
[1763452033158,1.77903753,3030.1,3029.8,0.0049482]
[1763452033359,1.77903753,3030.1,3030.0,0.1373]
[1763452033556,1.77903753,3030.1,3030.0,0.3775]
[1763452033755,12.27412453,3030.2,3029.8,0.0049482]
[1763452034555,12.27412453,3030.2,3030.0,0.1373]
[1763452035058,1.78279202,3030.3,3030.0,0.1373]
[1763452035253,4.15912453,3030.2,3029.8,0.0049482]
[1763452035453,1.77903753,3030.0,3029.8,0.0049482]
[1763452035661,1.77550218,3029.9,3029.8,0.0049482]
[1763452035953,1.77550218,3029.9,3029.8,0.2451482]
[1763452036145,7.011,3029.9,3029.8,0.2451482]
[1763452036351,7.011,3029.9,3029.8,0.0049482]
[1763452036552,7.011,3029.9,3029.8,0.2451482]
[1763452036753,7.011,3029.9,3029.8,0.0049482]
[1763452038054,1.77550218,3030.0,3029.8,0.0049482]
[1763452038262,8.114,3029.9,3029.8,0.0049482]
[1763452038458,9.88950218,3029.9,3029.0,0.1373]
[1763452038756,2.380087,3029.2,3029.0,0.1373]
[1763452039454,1.77523748,3029.4,3029.0,0.1373]
[1763452039756,1.77523748,3029.5,3029.0,0.1373]
[1763452039952,8.113,3029.3,3029.0,0.1373]
[1763452042966,8.113,3029.3,3029.2,0.2402]
[1763452043167,1.63799033,3029.7,3029.6,0.2425]
[1763452043368,0.00375449,3030.3,3030.2,0.2425]
[1763452043562,0.00375449,3030.3,3030.2,0.24584758]
[1763452044667,0.00375449,3030.3,3030.2,0.00334758]
[1763452045170,0.00375449,3030.3,3030.2,0.24584758]
[1763452047973,0.00375449,3030.3,3030.2,0.00334758]
[1763452048673,2.38384149,3030.3,3030.2,0.00334758]
[1763452049565,4.7563214,3030.3,3028.1,2.380087]
[1763452049870,2.24,3030.2,3028.1,2.380087]
[1763452050175,2.24,3030.2,3028.9,0.53548]
[1763452050678,2.38384149,3030.3,3030.0,0.1434]
[1763452050881,5.56,3030.2,3030.0,0.1434]
[1763452051780,5.56,3030.2,3030.1,0.234]
[1763452052281,0.00375449,3030.3,3030.2,0.234]
[1763452053177,0.00375449,3030.3,3030.0,0.1434]
[1763452053583,2.38384149,3030.3,3029.5,0.1434]
[1763452053770,2.380087,3029.9,3029.5,0.1434]
[1763452053971,2.380087,3029.9,3029.0,0.14096775]
[1763452054572,2.380087,3029.9,3029.5,0.1434]
[1763452054880,2.38384149,3030.3,3029.5,0.1434]
[1763452055083,7.597,3030.2,3029.5,0.1434]
[1763452055965,2.38384149,3030.3,3029.5,0.1434]
[1763452056178,8.109,3030.1,3030.0,0.1434]
[1763452056373,2.38384149,3030.3,3030.0,0.1434]
[1763452056571,0.00375449,3030.3,3030.2,0.234]
[1763452059279,1.1893098,3030.3,3030.2,0.234]
[1763452060890,0.00375449,3030.3,3030.2,0.234]
[1763452061788,0.44660351,3030.5,3030.4,0.234]
[1763452061986,2.37247991,3031.7,3030.8,0.53515]
[1763452062186,8.107,3031.6,3031.0,0.1434]
[1763452062380,8.107,3031.6,3031.5,0.3774]
[1763452062782,8.107,3031.6,3031.5,0.38008851]
[1763452062783,8.11027726,3031.6,3031.5,0.38008851]
[1763452063291,2.62216426,3031.6,3031.5,0.00268851]
[1763452063484,10.72916426,3031.6,3031.5,0.00268851]
[1763452064089,8.34907726,3031.6,3031.5,0.00268851]
[1763452065392,0.00327726,3031.6,3031.5,0.38008851]
[1763452066188,0.00327726,3031.6,3031.5,0.23668851]
[1763452066381,0.24207726,3031.6,3031.5,0.00268851]
[1763452068889,0.00327726,3031.6,3031.5,0.23668851]
[1763452069087,0.24207726,3031.6,3031.5,0.00268851]
[1763452069291,8.34607726,3031.6,3031.5,0.00268851]
[1763452070095,0.2388,3031.3,3030.2,0.26982013]
[1763452070289,0.2388,3031.3,3030.5,0.1434]
[1763452070594,0.2388,3031.3,3030.5,0.6786]
[1763452070794,0.2388,3031.3,3030.6,0.53518]
[1763452071191,0.2388,3031.3,3030.6,0.53942974]
[1763452071794,0.2388,3031.3,3030.7,0.53517]
[1763452072095,8.10727726,3031.6,3031.2,0.234]
[1763452072096,0.00327726,3031.6,3031.2,0.234]
[1763452072286,7.868,3031.5,3031.2,0.234]
[1763452072695,7.868,3031.5,3031.4,0.234]
[1763452072892,8.0023,3031.5,3031.0,0.234]
[1763452073100,8.102,3031.5,3031.0,0.3774]
[1763452073297,8.2363,3031.5,3031.0,0.3774]
[1763452073797,8.102,3031.5,3031.0,0.3774]
[1763452073992,0.00327726,3031.6,3031.5,0.234]
[1763452074300,0.00327726,3031.6,3031.5,0.3774]
[1763452074995,0.00327726,3031.6,3031.2,0.234]
[1763452075499,0.2388,3031.3,3031.2,0.234]
[1763452075892,0.00327726,3031.6,3031.2,0.234]
[1763452076302,0.2388,3031.3,3031.0,0.1434]
[1763452076690,0.24207726,3031.6,3031.0,0.1434]
[1763452077699,0.1361,3031.5,3031.0,0.1434]
[1763452077901,0.1361,3031.5,3030.6,0.00424974]
[1763452078199,1.912058,3031.5,3030.6,0.00424974]
[1763452078697,0.1361,3031.5,3030.6,0.00424974]
[1763452079702,0.2244,3030.7,3030.6,0.00424974]
[1763452080302,0.2244,3030.7,3030.6,0.25144974]
[1763452080706,0.2244,3030.1,3029.0,0.1451]
[1763452080900,1.41,3030.7,3030.4,0.2472]
[1763452081104,0.2244,3030.5,3030.4,0.2472]
[1763452081607,8.1,3030.7,3030.4,0.2472]
[1763452081907,0.0049482,3030.9,3030.8,0.2472]
[1763452087910,0.2244,3030.5,3030.4,0.00293878]
[1763452088106,0.3605,3030.5,3030.4,0.00293878]
[1763452088407,4.5959482,3030.9,3030.5,0.1451]
[1763452088606,4.5959482,3030.9,3030.8,0.2472]
[1763452089011,0.2244,3030.5,3030.4,0.00293878]
[1763452089212,0.3605,3030.5,3030.4,0.00293878]
[1763452090011,1.7809062,3030.9,3030.8,0.2472]
[1763452090208,0.0049482,3030.9,3030.8,0.2472]
[1763452090817,0.0049482,3030.9,3030.8,0.78235]
[1763452091012,0.0049482,3030.9,3030.8,0.2472]
[1763452092614,0.2293482,3030.9,3030.5,0.1451]
[1763452093121,0.2293482,3030.9,3030.8,0.2472]
[1763452093519,0.0049482,3030.9,3030.8,0.2472]
[1763452095516,0.0049482,3030.9,3030.8,0.78235]
[1763452096119,0.00327726,3031.6,3031.5,0.2472]
[1763452096316,0.22767726,3031.6,3031.5,0.2472]
[1763452097516,0.1361,3031.5,3031.2,0.0049482]
[1763452097716,0.00327726,3031.6,3031.2,0.0049482]
[1763452097916,0.1361,3031.5,3031.2,0.0049482]
[1763452098226,0.00327726,3031.6,3031.2,0.0049482]
[1763452099722,0.138,3031.5,3031.2,0.0049482]
[1763452100124,0.00327726,3031.6,3031.4,0.2387]
[1763452100337,0.2307,3031.5,3031.4,0.2387]
[1763452100625,0.2307,3031.5,3031.2,0.0049482]
[1763452100826,0.2307,3031.3,3031.2,0.0049482]
[1763452101723,1.41660289,3031.3,3030.2,0.53524]
[1763452101924,0.138,3031.0,3030.2,0.53524]
[1763452102117,0.138,3031.0,3030.5,0.1355]
[1763452103725,1.18590289,3031.2,3030.5,0.6707]
[1763452104321,1.18590289,3031.3,3030.5,0.1355]
[1763452104622,1.18590289,3031.2,3030.4,0.00293878]
[1763452104825,0.138,3031.0,3030.4,0.00293878]
[1763452105023,1.18590289,3031.1,3030.5,0.1355]
[1763452105218,0.138,3031.0,3030.4,0.00293878]
[1763452105529,0.2307,3030.5,3030.4,0.24163878]
[1763452105733,7.37190289,3031.0,3030.5,0.6707]
[1763452105924,6.186,3031.0,3030.5,0.6707]
[1763452106229,1.18590289,3031.1,3031.0,0.2387]
[1763452106624,9.28090289,3031.3,3031.0,0.2387]
[1763452106834,1.41660289,3031.3,3031.2,0.2387]
[1763452107126,1.41660289,3031.3,3030.8,0.53515]
[1763452107325,1.41660289,3031.3,3030.5,0.1355]
[1763452107731,1.41660289,3031.3,3030.5,0.6707]
[1763452108032,1.18590289,3031.2,3030.4,0.00293878]
[1763452108230,0.2253,3030.5,3030.4,0.00293878]
[1763452108633,0.2253,3030.5,3030.4,0.23053878]
[1763452109232,0.3647,3030.5,3029.5,0.1451]
[1763452109430,0.0049482,3030.3,3029.0,0.67096]
[1763452109630,0.0049482,3030.3,3028.5,0.1465]
[1763452109631,1.32530289,3029.5,3028.5,0.1465]
[1763452109828,1.18590289,3029.4,3028.5,0.1465]
[1763452110224,4.21,3029.3,3028.5,0.00370329]
[1763452110426,0.2253,3028.6,3028.5,0.00370329]
[1763452110730,1.18590289,3028.9,3028.8,0.2276]
[1763452110933,7.242,3029.1,3028.8,0.2276]
[1763452111135,0.2253,3028.9,3028.5,0.08540329]
[1763452111524,0.2253,3028.9,3028.8,0.2276]
[1763452111727,0.2253,3028.6,3028.5,0.00370329]
[1763452113237,0.1394,3029.0,3028.5,0.23130329]
[1763452114331,0.00233885,3029.4,3028.5,0.31300329]
[1763452114540,8.096,3029.3,3028.5,0.84855329]
[1763452114740,8.096,3029.3,3028.5,0.23130329]
[1763452115439,0.2253,3028.6,3028.5,0.00370329]
[1763452116942,0.1394,3029.0,3028.5,0.00370329]
[1763452116943,7.235,3028.8,3028.5,0.23130329]
[1763452117338,0.2253,3028.6,3028.5,0.00370329]
[1763452117733,0.1394,3029.0,3028.5,0.37780329]
[1763452118040,8.2364,3029.0,3028.5,0.37780329]
[1763452118240,8.2364,3029.0,3028.5,0.23130329]
[1763452119336,8.097,3029.2,3028.7,0.53552]
[1763452119544,0.00233885,3029.4,3029.1,0.2276]
[1763452120440,0.00233885,3029.4,3029.3,0.2276]
[1763452122037,0.0709482,3030.3,3029.6,0.53535]
[1763452122939,0.07463368,3030.3,3029.3,0.5354]
[1763452123243,0.07463368,3030.3,3029.5,0.68188]
[1763452123545,0.00863368,3030.3,3029.5,0.68187]
[1763452123745,0.00863368,3030.3,3029.5,0.1465]
[1763452124046,0.00863368,3030.3,3030.2,0.2276]
[1763452124543,0.2454,3031.5,3030.5,0.60829]
[1763452124845,0.2454,3031.5,3030.7,0.53516]
[1763452125044,0.2454,3031.5,3030.8,0.53514]
[1763452125240,0.2454,3031.5,3030.6,0.53518]
[1763452125541,0.0049482,3031.4,3030.7,0.0049482]
[1763452126946,3.0939482,3031.4,3030.7,0.5401082]
[1763452127146,3.0939482,3031.4,3030.7,0.0049482]
[1763452127337,3.0939482,3031.4,3030.7,0.5401082]
[1763452127538,3.0939482,3031.4,3030.7,0.0049482]
[1763452127837,3.0939482,3031.4,3030.7,0.5401082]
[1763452128244,3.0939482,3031.4,3030.7,0.0049482]
[1763452128433,0.2253,3030.8,3030.7,0.0049482]
[1763452129539,4.8993,3030.8,3030.7,0.2325482]
[1763452129848,0.2253,3030.8,3030.7,0.2325482]
[1763452130243,8.094,3031.2,3030.7,0.7676982]
[1763452130548,8.094,3031.2,3030.7,0.7677082]
[1763452130742,8.094,3031.2,3030.7,0.2325482]
[1763452131047,8.094,3031.2,3030.7,0.7677182]
[1763452131247,8.094,3031.2,3030.7,0.2325482]
[1763452131541,0.2253,3030.8,3030.7,0.0049482]
[1763452133549,0.2253,3030.8,3030.7,0.2325482]
[1763452133734,0.2253,3030.8,3030.7,0.0049482]
[1763452134345,8.3173,3030.8,3030.7,0.0049482]
[1763452135339,0.1394,3031.0,3030.7,0.2325482]
[1763452135552,0.2253,3030.8,3030.7,0.0049482]
[1763452137343,0.1394,3031.0,3030.7,0.0049482]
[1763452138046,0.0049482,3031.4,3030.9,0.2348]
[1763452138246,8.091,3031.3,3030.9,0.2348]
[1763452138440,0.1453,3031.0,3030.7,0.2397482]
[1763452138840,8.091,3031.3,3030.7,0.2397482]
[1763452139346,8.091,3031.3,3031.2,0.2348]
[1763452139645,8.091,3031.3,3030.7,0.0049482]
[1763452140439,8.091,3031.3,3030.7,0.5401182]
[1763452140751,8.091,3031.3,3030.7,0.0049482]
[1763452141146,0.2441,3030.8,3030.7,0.0049482]
[1763452143141,0.2441,3030.7,3029.5,0.1465]
[1763452143551,0.2441,3030.7,3029.6,0.53536]
[1763452143745,0.2441,3030.7,3029.5,0.1465]
[1763452143947,4.8641,3030.7,3029.5,0.1465]
[1763452144255,4.8641,3030.7,3029.9,0.5353]
[1763452144452,4.8641,3030.7,3030.0,0.61299]
[1763452144952,4.8641,3030.7,3029.5,0.14998044]
[1763452144953,0.1453,3030.5,3029.6,0.53535]
[1763452145639,0.1453,3030.5,3029.5,0.14998044]
[1763452145840,0.2441,3029.6,3029.5,0.00348044]
[1763452146240,0.0049482,3029.9,3029.5,0.23828044]
[1763452146454,0.2441,3029.6,3029.5,0.23828044]
[1763452146648,0.0049482,3029.9,3029.5,0.23828044]
[1763452147149,0.2441,3029.6,3029.5,0.00348044]
[1763452147356,0.1453,3029.5,3028.5,0.1471]
[1763452147743,2.37520184,3029.4,3028.0,0.0777]
[1763452147958,1.18590289,3029.3,3028.0,0.0777]
[1763452148448,1.18965923,3029.3,3028.0,0.08032666]
[1763452148652,0.2441,3028.1,3028.0,0.00262666]
[1763452149446,0.0049482,3028.4,3028.0,0.23742666]
[1763452149759,3.7479482,3028.4,3028.0,0.23742666]
[1763452150049,0.2441,3028.1,3028.0,0.00262666]
[1763452150448,8.0949482,3028.4,3028.0,0.23742666]
[1763452150771,8.0949482,3028.4,3028.3,0.2348]
[1763452150772,0.0049482,3028.4,3028.3,0.2348]
[1763452151255,0.2490482,3028.4,3028.0,0.14972666]
[1763452152152,0.2441,3028.1,3028.0,0.00262666]
[1763452153255,5.6379482,3028.4,3028.0,0.00262666]
[1763452153455,0.0049482,3028.4,3028.0,0.38452666]
[1763452153762,0.2490482,3028.4,3028.0,0.00262666]
[1763452154454,0.0049482,3028.4,3028.3,0.2348]
[1763452154654,0.2490482,3028.4,3028.0,0.14972666]
[1763452154955,0.2490482,3028.4,3028.0,0.00262666]
[1763452155158,0.2441,3028.1,3028.0,0.00262666]
[1763452156254,0.0049482,3028.4,3028.0,0.00262666]
[1763452157444,0.2441,3028.1,3028.0,0.00262666]
[1763452158460,6.191,3028.3,3028.0,0.23742666]
[1763452158649,0.0049482,3028.4,3028.0,0.23742666]
[1763452159753,0.0049482,3028.4,3028.3,0.2257]
[1763452160658,0.2511482,3028.4,3028.0,0.00262666]
[1763452161358,0.2511482,3028.4,3028.0,0.67655666]
[1763452161663,0.0049482,3028.4,3028.3,0.2257]
[1763452162459,0.2511482,3028.4,3028.0,0.00262666]
[1763452162660,0.2462,3028.1,3028.0,0.00262666]
[1763452163666,0.1365,3027.5,3027.1,0.5358]
[1763452164361,0.1365,3028.0,3027.1,0.5358]
[1763452164554,0.1365,3028.0,3027.1,0.00268468]
[1763452165556,0.2462,3027.2,3026.3,0.53594]
[1763452165861,0.2462,3027.2,3026.5,0.1383]
[1763452165862,4.5382,3027.2,3026.5,0.1383]
[1763452166161,4.5382,3027.2,3025.8,2.37520184]
[1763452166352,0.2462,3027.2,3025.8,2.37520184]
[1763452166548,0.2462,3027.2,3026.0,0.14228713]
[1763452166852,0.2462,3027.2,3026.5,0.1433]
[1763452168054,0.2462,3027.2,3026.5,0.6792]
[1763452168257,0.2462,3027.2,3026.5,0.1433]
[1763452168651,0.2462,3027.2,3026.4,0.53592]
[1763452168960,0.2462,3027.2,3026.5,0.6792]
[1763452169174,0.2462,3027.2,3026.0,0.14228713]
[1763452169356,0.2462,3027.2,3026.5,0.6792]
[1763452169665,0.1365,3027.5,3027.1,0.233]
[1763452170164,5.767,3027.9,3026.5,0.1433]
[1763452170165,5.339,3027.9,3027.2,0.53578]
[1763452170366,5.339,3027.9,3027.3,0.53576]
[1763452170560,5.339,3027.9,3026.5,0.1433]
[1763452170861,0.1365,3028.0,3027.0,0.1039]
[1763452171053,0.0049482,3028.4,3027.0,0.1039]
[1763452171254,0.0049482,3028.4,3027.5,0.1433]
[1763452171658,0.0049482,3028.4,3027.7,0.53568]
[1763452171861,0.0049482,3028.4,3027.8,0.53568]
[1763452172366,0.0049482,3028.4,3027.5,0.1433]
[1763452173066,0.0049482,3028.4,3027.5,0.53573]
[1763452173267,0.0049482,3028.4,3027.5,0.67403]
[1763452173568,0.0049482,3028.4,3027.6,0.53571]
[1763452173864,8.0979482,3028.4,3027.7,0.53569]
[1763452175057,8.0979482,3028.4,3027.5,0.1383]
[1763452175262,8.0979482,3028.4,3027.7,0.53569]
[1763452175568,0.0049482,3028.4,3027.7,0.53569]
[1763452175865,8.0979482,3028.4,3027.0,0.1039]
[1763452176065,9.28385109,3028.4,3027.4,0.53574]
[1763452176267,9.28385109,3028.4,3027.0,0.1039]
[1763452176869,9.28385109,3028.4,3027.5,0.53573]
[1763452177060,1.18590289,3028.3,3027.5,0.53573]
[1763452177260,1.18590289,3028.3,3027.0,0.1039]
[1763452177460,8.70290289,3028.3,3027.5,0.67403]
[1763452177664,1.18590289,3028.3,3027.6,0.53571]
[1763452177863,1.18590289,3028.3,3027.5,0.1383]
[1763452178062,1.18590289,3028.3,3027.4,0.53574]
[1763452178263,1.18590289,3028.2,3027.4,0.53574]
[1763452179064,1.18590289,3028.3,3027.5,0.53573]
[1763452179263,1.18590289,3028.2,3027.0,0.1039]
[1763452179462,1.18590289,3028.2,3028.1,0.233]
[1763452179665,1.7809062,3028.4,3028.1,0.233]
[1763452179666,0.0049482,3028.4,3028.1,0.233]
[1763452179862,0.0049482,3028.4,3028.3,0.233]
[1763452180164,0.0049482,3028.4,3028.3,0.77240622]
[1763452180474,0.147,3029.5,3028.9,0.76848]
[1763452180776,0.147,3029.5,3029.0,0.53547]
[1763452181067,0.147,3029.5,3028.5,0.1383]
[1763452181068,1.775958,3029.9,3029.2,0.233]
[1763452181273,9.458958,3030.0,3029.2,0.233]
[1763452181572,0.0049482,3029.6,3029.2,0.233]
[1763452184360,0.147,3030.5,3030.1,0.53526]
[1763452184563,10.46520184,3030.9,3030.0,0.67859]
[1763452184765,10.46520184,3030.9,3030.0,0.1433]
[1763452184964,10.46520184,3030.9,3029.9,0.5353]
[1763452185271,10.46520184,3030.9,3029.8,0.53532]
[1763452185272,10.46924652,3030.9,3029.8,0.53532]
[1763452185565,0.0049482,3030.7,3029.5,0.1039]
[1763452185764,0.0049482,3030.7,3029.7,0.53534]
[1763452185966,0.0049482,3030.7,3029.8,0.53532]
[1763452186273,0.0049482,3030.7,3029.5,0.1039]
[1763452186974,0.0049482,3030.7,3029.7,0.53534]
[1763452187271,0.0049482,3030.7,3029.5,0.1039]
[1763452187569,0.147,3030.0,3028.9,0.0049482]
[1763452187971,0.147,3030.0,3029.1,0.53543]
[1763452188274,2.212,3030.0,3029.2,0.53543]
[1763452188465,2.212,3030.0,3029.0,0.1047]
[1763452189373,2.212,3030.0,3029.2,0.53543]
[1763452189568,2.212,3030.0,3029.3,0.53541]
[1763452191772,0.147,3030.0,3029.0,0.1047]
[1763452191971,0.147,3030.5,3029.0,0.1047]
[1763452191972,1.444,3030.3,3029.0,0.1047]
[1763452192174,1.444,3030.3,3029.2,0.53542]
[1763452192377,1.444,3030.3,3029.3,0.53541]
[1763452192572,1.444,3030.3,3028.9,0.5404282]
[1763452192872,0.147,3030.0,3028.9,0.5404282]
[1763452193073,0.147,3030.0,3028.9,0.0049482]
[1763452193877,0.147,3030.0,3028.9,0.5404282]
[1763452194279,0.147,3030.0,3029.0,0.53546]
[1763452194476,0.147,3030.0,3029.3,0.53541]
[1763452194670,0.147,3030.0,3029.4,0.53539]
[1763452194872,0.147,3030.0,3029.5,0.53538]
[1763452195173,0.147,3030.0,3029.2,0.53543]
[1763452195373,0.147,3030.0,3029.0,0.1047]
[1763452195679,0.147,3030.0,3029.1,0.53544]
[1763452196377,0.147,3030.0,3029.4,0.53538]
[1763452196775,0.147,3030.0,3029.0,0.1047]
[1763452196776,0.147,3030.0,3029.3,0.53541]
[1763452197171,0.147,3030.0,3029.4,0.53539]
[1763452198878,0.147,3030.0,3029.0,0.1047]
[1763452199182,0.147,3030.0,3029.3,0.53541]
[1763452200477,0.3244,3029.0,3028.9,0.0049482]
[1763452200682,0.2375,3028.4,3028.3,0.00381622]
[1763452200871,0.24056073,3028.4,3028.3,0.00381622]
[1763452201579,0.24056073,3028.4,3027.0,0.1363]
[1763452201782,0.0049482,3028.0,3027.4,0.0049482]
[1763452202778,0.0049482,3028.0,3027.4,0.00835075]
[1763452202973,0.2375,3027.5,3027.4,0.00835075]
[1763452205075,3.753,3027.8,3027.4,0.00835075]
[1763452205286,0.0049482,3028.0,3027.4,0.54409075]
[1763452205475,0.0049482,3028.0,3027.9,0.2262]
[1763452206077,0.0049482,3028.0,3027.6,0.67201]
[1763452206287,0.0049482,3028.0,3027.9,0.2262]
[1763452207078,0.0049482,3028.0,3027.4,0.00835075]
[1763452207475,0.0049482,3028.0,3027.4,0.54410075]
[1763452207681,0.0049482,3028.0,3027.4,0.00835075]
[1763452208477,0.0049482,3028.0,3027.4,0.54410075]
[1763452208677,0.0049482,3028.0,3027.4,0.00835075]
[1763452208888,0.0049482,3028.0,3027.5,0.53573]
[1763452209284,0.0049482,3028.0,3027.4,0.00835075]
[1763452209890,0.2375,3027.5,3027.4,0.00835075]
[1763452210089,0.0049482,3028.0,3027.4,0.00835075]
[1763452210985,0.0049482,3028.0,3027.9,0.2262]
[1763452211194,0.0049482,3028.0,3027.6,0.1363]
[1763452211391,0.0049482,3028.0,3027.9,0.2262]
[1763452212592,0.0049482,3028.0,3027.7,0.53569]
[1763452212986,0.0049482,3028.0,3027.9,0.2262]
[1763452213683,0.00306073,3028.4,3028.3,0.76179]
[1763452214689,0.00306073,3028.4,3028.3,0.2262]
[1763452216984,0.00306073,3028.4,3028.3,0.76179]
[1763452218392,0.00306073,3028.4,3028.3,0.2262]
[1763452218595,0.00306073,3028.4,3028.3,0.76179]
[1763452218900,0.00306073,3028.4,3028.3,0.2262]
[1763452219092,0.24056073,3028.4,3028.0,0.67193]
[1763452219390,0.24056073,3028.4,3027.0,0.1276]
[1763452219588,0.24056073,3028.4,3027.4,0.54409075]
[1763452219990,0.24056073,3028.4,3027.6,0.5357]
[1763452220186,0.24056073,3028.4,3027.5,0.1362]
[1763452220390,0.24056073,3028.4,3027.8,0.53568]
[1763452220584,0.00306073,3028.4,3028.3,0.2382]
[1763452220792,0.23706073,3028.4,3027.5,0.1362]
[1763452220990,0.23706073,3028.4,3027.4,0.00835075]
[1763452221186,2.93150152,3028.4,3027.4,0.54410075]
[1763452221584,2.93150152,3028.4,3027.4,0.00835075]
[1763452221788,0.23706073,3028.4,3027.4,0.54410075]
[1763452222000,0.23706073,3028.4,3027.4,0.00835075]
[1763452222496,0.23706073,3028.4,3027.4,0.24655075]
[1763452222497,0.1438,3028.0,3027.4,0.24655075]
[1763452222889,6.407,3028.1,3027.5,0.1362]
[1763452223196,6.407,3028.1,3027.5,0.67193]
[1763452223990,0.1438,3028.0,3027.4,0.00835075]
[1763452224187,0.234,3027.5,3027.4,0.00835075]
[1763452224599,0.1438,3028.0,3027.4,0.24655075]
[1763452225806,3.87693344,3028.4,3027.9,0.2382]
[1763452225807,0.00306073,3028.4,3027.9,0.2382]
[1763452226003,0.234,3028.0,3027.5,0.1362]
[1763452226199,0.3778,3028.0,3027.5,0.1362]
[1763452226397,0.3778,3028.0,3027.4,0.54409075]
[1763452226598,0.3778,3028.0,3027.4,0.00835075]
[1763452227103,0.3778,3028.0,3027.5,0.137]
[1763452227302,0.3778,3028.0,3027.5,0.67272]